{"text_format":"3","workbook":"xlsx","n_sheets":14,"sheets":["เคล็ดลับ","สรุป","ม.ค.","ก.พ.","มี.ค.","เม.ย.","พ.ค.","มิ.ย.","ก.ค.","ส.ค.","ก.ย.","ต.ค.","พ.ย.","ธ.ค."],"not_rendered":{"charts":1,"defined_names":27},"read":"whole","date_system":"1900"}

{"sheet":"เคล็ดลับ","index":0,"n_rows":18,"n_cols":1,"rows_kept":18}
["เคล็ดลับเทมเพลต"]
["มีวิธีง่ายๆ ในการย้ายไปมาระหว่างแผ่นงานสรุปแนวโน้มค่าใช้จ่ายและรายละเอียดค่าใช้จ่ายรายเดือน"]
["เมื่อต้องการนำทางอย่างรวดเร็วไปยังค่าใช้จ่ายของเดือนที่ระบุ ให้คลิกลิงก์นำทางที่เกี่ยวข้องทางด้านบนของแผนภูมิ เช่น ลิงก์นำทาง ม.ค. ใน B2 จากนั้น เมื่อต้องการย้อนกลับไปยังเวิร์กชีตแนวโน้มค่าใช้จ่าย ให้คลิกลิงก์นำทาง สรุป ใน D1 "]
["เมื่อต้องการย้อนกลับไปยังเวิร์กชีตเคล็ดลับนี้ ในเวิร์กชีตสรุป ให้เลือก N2 จากเวิร์กชีตของทุกเดือน ให้เลือก E1"]
["ฉันจะเพิ่มชนิดค่าใช้จ่ายใหม่ไปยังสรุปค่าใช้จ่ายหรือค่าใช้จ่ายรายเดือนใหม่ได้อย่างไร"]
["สรุปค่าใช้จ่ายด้านล่างของแผนภูมิและรายละเอียดค่าใช้จ่ายของแต่ละเดือนเป็นจะตาราง Excel เมื่อต้องการเพิ่มแถวใหม่ลงในตาราง Excel ให้ทำอย่างใดอย่างหนึ่งต่อไปนี้:"]
[{"$f":"ROW(A1)&\". ถ้าตารางไม่มีแถวผลรวม ให้เริ่มพิมพ์ด้านล่างตารางแล้วแถวจะขยายโดยอัตโนมัติเมื่อคุณกดปุ่ม Enter หรือ Tab\"","v":"1. ถ้าตารางไม่มีแถวผลรวม ให้เริ่มพิมพ์ด้านล่างตารางแล้วแถวจะขยายโดยอัตโนมัติเมื่อคุณกดปุ่ม Enter หรือ Tab"}]
[{"$f":"ROW(A2)&\". วางตัวชี้เซลล์ในเซลล์สุดท้ายเหนือแถวผลรวม เช่น ผลรวมของรายจ่ายสุดท้าย จากนั้นกดปุ่ม Tab\"","v":"2. วางตัวชี้เซลล์ในเซลล์สุดท้ายเหนือแถวผลรวม เช่น ผลรวมของรายจ่ายสุดท้าย จากนั้นกดปุ่ม Tab"}]
[{"$f":"ROW(A3)&\". คลิกขวาในตารางและบนเมนูป็อปอัพ ให้ชี้ไปที่แทรก จากนั้นคลิกแถวตารางด้านบน หรือแถวตารางด้านล่าง\"","v":"3. คลิกขวาในตารางและบนเมนูป็อปอัพ ให้ชี้ไปที่แทรก จากนั้นคลิกแถวตารางด้านบน หรือแถวตารางด้านล่าง"}]
[{"$f":"ROW(A4)&\". ที่มุมขวาล่างของตาราง ให้วางเมาส์จุดจับปรับขนาดของตารางแล้วลากลงเพื่อเพิ่มจำนวนแถวในตารางที่พร้อมใช้งาน\"","v":"4. ที่มุมขวาล่างของตาราง ให้วางเมาส์จุดจับปรับขนาดของตารางแล้วลากลงเพื่อเพิ่มจำนวนแถวในตารางที่พร้อมใช้งาน"}]
["ใส่ค่าใช้จ่ายในเวิร์กชีต สรุป ในตาราง สรุปค่าใช้จ่าย ในคอลัมน์ ค่าใช้จ่าย"]
["เพิ่มยอดค่าใช้จ่ายสำหรับค่าใช้จ่ายแต่ละชนิดในเวิร์กชีตเดือนที่มีค่าใช้จ่าย"]
["ตัวอย่างเช่น: \"ค่าใช้จ่าย 1\" เกิดขึ้นในเดือนมกราคมถึงเดือนมิถุนายนและเดือนธันวาคม "]
[{"$f":"ROW(A1)&\". รายจ่าย 1 ถูกใส่ในเวิร์กชีตผลสรุปภายใต้รายจ่ายในตาราง สรุปรายจ่าย (เป็นชื่อเรื่องสำหรับประเภทรายจ่าย)\"","v":"1. รายจ่าย 1 ถูกใส่ในเวิร์กชีตผลสรุปภายใต้รายจ่ายในตาราง สรุปรายจ่าย (เป็นชื่อเรื่องสำหรับประเภทรายจ่าย)"}]
[{"$f":"ROW(A2)&\". สำหรับรายจ่ายที่เกิดขึ้นในแต่ละเดือน ให้ใส่จำนวนสำหรับรายจ่ายในเวิร์กชีตของเดือนที่สอดคล้องกัน\"","v":"2. สำหรับรายจ่ายที่เกิดขึ้นในแต่ละเดือน ให้ใส่จำนวนสำหรับรายจ่ายในเวิร์กชีตของเดือนที่สอดคล้องกัน"}]
[{"$f":"ROW(A3)&\". ชนิดรายจ่ายจากเวิร์กชีตสรุปรายจ่ายจะสร้างรายการประเภทสำหรับคอลัมน์ประเภทในเวิร์กชีตของแต่ละเดือน\"","v":"3. ชนิดรายจ่ายจากเวิร์กชีตสรุปรายจ่ายจะสร้างรายการประเภทสำหรับคอลัมน์ประเภทในเวิร์กชีตของแต่ละเดือน"}]
[{"$f":"ROW(A4)&\". ใช้รายการประเภทในคอลัมน์ประเภทเพื่อเลือกประเภทรายจ่ายที่สอดคล้องกันสำหรับจำนวนรายจ่ายที่ใส่\"","v":"4. ใช้รายการประเภทในคอลัมน์ประเภทเพื่อเลือกประเภทรายจ่ายที่สอดคล้องกันสำหรับจำนวนรายจ่ายที่ใส่"}]
[{"$f":"ROW(A5)&\". เมื่อต้องการเพิ่มรายจ่ายสำหรับเดือนใดๆ ให้เพิ่มแถวใหม่ลงในตารางสรุปรายจ่ายในเวิร์กชีตบทสรุป จากนั้นใส่รายละเอียดรายจ่ายที่สอดคล้องกันในเวิร์กชีตของเดือนที่เกิดรายจ่าย\"","v":"5. เมื่อต้องการเพิ่มรายจ่ายสำหรับเดือนใดๆ ให้เพิ่มแถวใหม่ลงในตารางสรุปรายจ่ายในเวิร์กชีตบทสรุป จากนั้นใส่รายละเอียดรายจ่ายที่สอดคล้องกันในเวิร์กชีตของเดือนที่เกิดรายจ่าย"}]

{"sheet":"สรุป","index":1,"n_rows":10,"n_cols":15,"rows_kept":10}
["แนวโน้มค่าใช้จ่าย"]
[null,"ม.ค.","ก.พ.","มี.ค.","เม.ย.","พ.ค.","มิ.ย.","ก.ค.","ส.ค.","ก.ย.","ต.ค.","พ.ย.","ธ.ค.","เคล็ดลับ"]
[]
["รายจ่าย","ม.ค.","ก.พ.","มี.ค.","เม.ย.","พ.ค.","มิ.ย.","ก.ค.","ส.ค.","ก.ย.","ต.ค.","พ.ย.","ธ.ค.","ผลรวม","แนวโน้ม"]
["ค่าใช้จ่าย 1",{"$f":"SUMIFS(ค่าใช้จ่ายเดือนมกราคม[จำนวนเงิน],ค่าใช้จ่ายเดือนมกราคม[ประเภท],สรุปค่าใช้จ่าย[รายจ่าย])","v":{"v":33,"d":"33.00"}},{"$f":"SUMIFS(ค่าใช้จ่ายเดือนกุมภาพันธ์[จำนวนเงิน],ค่าใช้จ่ายเดือนกุมภาพันธ์[ประเภท],สรุปค่าใช้จ่าย[รายจ่าย])","v":{"v":375,"d":"375.00"}},{"$f":"SUMIFS(ค่าใช้จ่ายเดือนมีนาคม[จำนวนเงิน],ค่าใช้จ่ายเดือนมีนาคม[ประเภท],สรุปค่าใช้จ่าย[รายจ่าย])","v":{"v":33,"d":"33.00"}},{"$f":"SUMIFS(ค่าใช้จ่ายเดือนเมษายน[จำนวนเงิน],ค่าใช้จ่ายเดือนเมษายน[ประเภท],สรุปค่าใช้จ่าย[รายจ่าย])","v":{"v":45,"d":"45.00"}},{"$f":"SUMIFS(ค่าใช้จ่ายเดือนพฤษภาคม[จำนวนเงิน],ค่าใช้จ่ายเดือนพฤษภาคม[ประเภท],สรุปค่าใช้จ่าย[รายจ่าย])","v":{"v":375,"d":"375.00"}},{"$f":"SUMIFS(ค่าใช้จ่ายเดือนมิถุนายน[จำนวนเงิน],ค่าใช้จ่ายเดือนมิถุนายน[ประเภท],สรุปค่าใช้จ่าย[รายจ่าย])","v":{"v":201,"d":"201.00"}},{"$f":"SUMIFS(ค่าใช้จ่ายเดือนกรกฎาคม[จำนวนเงิน],ค่าใช้จ่ายเดือนกรกฎาคม[ประเภท],สรุปค่าใช้จ่าย[รายจ่าย])","v":{"v":0,"d":"0.00"}},{"$f":"SUMIFS(ค่าใช้จ่ายเดือนสิงหาคม[จำนวนเงิน],ค่าใช้จ่ายเดือนสิงหาคม[ประเภท],สรุปค่าใช้จ่าย[รายจ่าย])","v":{"v":0,"d":"0.00"}},{"$f":"SUMIFS(ค่าใช้จ่ายเดือนกรกฎาคม[จำนวนเงิน],ค่าใช้จ่ายเดือนกรกฎาคม[ประเภท],สรุปค่าใช้จ่าย[รายจ่าย])","v":{"v":0,"d":"0.00"}},{"$f":"SUMIFS(ค่าใช้จ่ายเดือนตุลาคม[จำนวนเงิน],ค่าใช้จ่ายเดือนตุลาคม[ประเภท],สรุปค่าใช้จ่าย[รายจ่าย])","v":{"v":0,"d":"0.00"}},{"$f":"SUMIFS(ค่าใช้จ่ายเดือนพฤศจิกายน[จำนวนเงิน],ค่าใช้จ่ายเดือนพฤศจิกายน[ประเภท],สรุปค่าใช้จ่าย[รายจ่าย])","v":{"v":0,"d":"0.00"}},{"$f":"SUMIFS(ค่าใช้จ่ายเดือนธันวาคม[จำนวนเงิน],ค่าใช้จ่ายเดือนธันวาคม[ประเภท],สรุปค่าใช้จ่าย[รายจ่าย])","v":{"v":201,"d":"201.00"}},{"$f":"SUM(สรุปค่าใช้จ่าย[[#This Row],[ม.ค.]:[ธ.ค.]])","v":{"v":1263,"d":"1,263.00"}}]
["ค่าใช้จ่าย 2",{"$f":"SUMIFS(ค่าใช้จ่ายเดือนมกราคม[จำนวนเงิน],ค่าใช้จ่ายเดือนมกราคม[ประเภท],สรุปค่าใช้จ่าย[รายจ่าย])","v":{"v":238,"d":"238.00"}},{"$f":"SUMIFS(ค่าใช้จ่ายเดือนกุมภาพันธ์[จำนวนเงิน],ค่าใช้จ่ายเดือนกุมภาพันธ์[ประเภท],สรุปค่าใช้จ่าย[รายจ่าย])","v":{"v":238,"d":"238.00"}},{"$f":"SUMIFS(ค่าใช้จ่ายเดือนมีนาคม[จำนวนเงิน],ค่าใช้จ่ายเดือนมีนาคม[ประเภท],สรุปค่าใช้จ่าย[รายจ่าย])","v":{"v":238,"d":"238.00"}},{"$f":"SUMIFS(ค่าใช้จ่ายเดือนเมษายน[จำนวนเงิน],ค่าใช้จ่ายเดือนเมษายน[ประเภท],สรุปค่าใช้จ่าย[รายจ่าย])","v":{"v":123,"d":"123.00"}},{"$f":"SUMIFS(ค่าใช้จ่ายเดือนพฤษภาคม[จำนวนเงิน],ค่าใช้จ่ายเดือนพฤษภาคม[ประเภท],สรุปค่าใช้จ่าย[รายจ่าย])","v":{"v":111,"d":"111.00"}},{"$f":"SUMIFS(ค่าใช้จ่ายเดือนมิถุนายน[จำนวนเงิน],ค่าใช้จ่ายเดือนมิถุนายน[ประเภท],สรุปค่าใช้จ่าย[รายจ่าย])","v":{"v":98,"d":"98.00"}},{"$f":"SUMIFS(ค่าใช้จ่ายเดือนกรกฎาคม[จำนวนเงิน],ค่าใช้จ่ายเดือนกรกฎาคม[ประเภท],สรุปค่าใช้จ่าย[รายจ่าย])","v":{"v":0,"d":"0.00"}},{"$f":"SUMIFS(ค่าใช้จ่ายเดือนสิงหาคม[จำนวนเงิน],ค่าใช้จ่ายเดือนสิงหาคม[ประเภท],สรุปค่าใช้จ่าย[รายจ่าย])","v":{"v":0,"d":"0.00"}},{"$f":"SUMIFS(ค่าใช้จ่ายเดือนกรกฎาคม[จำนวนเงิน],ค่าใช้จ่ายเดือนกรกฎาคม[ประเภท],สรุปค่าใช้จ่าย[รายจ่าย])","v":{"v":0,"d":"0.00"}},{"$f":"SUMIFS(ค่าใช้จ่ายเดือนตุลาคม[จำนวนเงิน],ค่าใช้จ่ายเดือนตุลาคม[ประเภท],สรุปค่าใช้จ่าย[รายจ่าย])","v":{"v":0,"d":"0.00"}},{"$f":"SUMIFS(ค่าใช้จ่ายเดือนพฤศจิกายน[จำนวนเงิน],ค่าใช้จ่ายเดือนพฤศจิกายน[ประเภท],สรุปค่าใช้จ่าย[รายจ่าย])","v":{"v":0,"d":"0.00"}},{"$f":"SUMIFS(ค่าใช้จ่ายเดือนธันวาคม[จำนวนเงิน],ค่าใช้จ่ายเดือนธันวาคม[ประเภท],สรุปค่าใช้จ่าย[รายจ่าย])","v":{"v":440,"d":"440.00"}},{"$f":"SUM(สรุปค่าใช้จ่าย[[#This Row],[ม.ค.]:[ธ.ค.]])","v":{"v":1486,"d":"1,486.00"}}]
["ค่าใช้จ่าย 3",{"$f":"SUMIFS(ค่าใช้จ่ายเดือนมกราคม[จำนวนเงิน],ค่าใช้จ่ายเดือนมกราคม[ประเภท],สรุปค่าใช้จ่าย[รายจ่าย])","v":{"v":110,"d":"110.00"}},{"$f":"SUMIFS(ค่าใช้จ่ายเดือนกุมภาพันธ์[จำนวนเงิน],ค่าใช้จ่ายเดือนกุมภาพันธ์[ประเภท],สรุปค่าใช้จ่าย[รายจ่าย])","v":{"v":110,"d":"110.00"}},{"$f":"SUMIFS(ค่าใช้จ่ายเดือนมีนาคม[จำนวนเงิน],ค่าใช้จ่ายเดือนมีนาคม[ประเภท],สรุปค่าใช้จ่าย[รายจ่าย])","v":{"v":110,"d":"110.00"}},{"$f":"SUMIFS(ค่าใช้จ่ายเดือนเมษายน[จำนวนเงิน],ค่าใช้จ่ายเดือนเมษายน[ประเภท],สรุปค่าใช้จ่าย[รายจ่าย])","v":{"v":125,"d":"125.00"}},{"$f":"SUMIFS(ค่าใช้จ่ายเดือนพฤษภาคม[จำนวนเงิน],ค่าใช้จ่ายเดือนพฤษภาคม[ประเภท],สรุปค่าใช้จ่าย[รายจ่าย])","v":{"v":333,"d":"333.00"}},{"$f":"SUMIFS(ค่าใช้จ่ายเดือนมิถุนายน[จำนวนเงิน],ค่าใช้จ่ายเดือนมิถุนายน[ประเภท],สรุปค่าใช้จ่าย[รายจ่าย])","v":{"v":122,"d":"122.00"}},{"$f":"SUMIFS(ค่าใช้จ่ายเดือนกรกฎาคม[จำนวนเงิน],ค่าใช้จ่ายเดือนกรกฎาคม[ประเภท],สรุปค่าใช้จ่าย[รายจ่าย])","v":{"v":0,"d":"0.00"}},{"$f":"SUMIFS(ค่าใช้จ่ายเดือนสิงหาคม[จำนวนเงิน],ค่าใช้จ่ายเดือนสิงหาคม[ประเภท],สรุปค่าใช้จ่าย[รายจ่าย])","v":{"v":0,"d":"0.00"}},{"$f":"SUMIFS(ค่าใช้จ่ายเดือนกรกฎาคม[จำนวนเงิน],ค่าใช้จ่ายเดือนกรกฎาคม[ประเภท],สรุปค่าใช้จ่าย[รายจ่าย])","v":{"v":0,"d":"0.00"}},{"$f":"SUMIFS(ค่าใช้จ่ายเดือนตุลาคม[จำนวนเงิน],ค่าใช้จ่ายเดือนตุลาคม[ประเภท],สรุปค่าใช้จ่าย[รายจ่าย])","v":{"v":0,"d":"0.00"}},{"$f":"SUMIFS(ค่าใช้จ่ายเดือนพฤศจิกายน[จำนวนเงิน],ค่าใช้จ่ายเดือนพฤศจิกายน[ประเภท],สรุปค่าใช้จ่าย[รายจ่าย])","v":{"v":0,"d":"0.00"}},{"$f":"SUMIFS(ค่าใช้จ่ายเดือนธันวาคม[จำนวนเงิน],ค่าใช้จ่ายเดือนธันวาคม[ประเภท],สรุปค่าใช้จ่าย[รายจ่าย])","v":{"v":122,"d":"122.00"}},{"$f":"SUM(สรุปค่าใช้จ่าย[[#This Row],[ม.ค.]:[ธ.ค.]])","v":{"v":1032,"d":"1,032.00"}}]
["ค่าใช้จ่าย 4",{"$f":"SUMIFS(ค่าใช้จ่ายเดือนมกราคม[จำนวนเงิน],ค่าใช้จ่ายเดือนมกราคม[ประเภท],สรุปค่าใช้จ่าย[รายจ่าย])","v":{"v":426,"d":"426.00"}},{"$f":"SUMIFS(ค่าใช้จ่ายเดือนกุมภาพันธ์[จำนวนเงิน],ค่าใช้จ่ายเดือนกุมภาพันธ์[ประเภท],สรุปค่าใช้จ่าย[รายจ่าย])","v":{"v":84,"d":"84.00"}},{"$f":"SUMIFS(ค่าใช้จ่ายเดือนมีนาคม[จำนวนเงิน],ค่าใช้จ่ายเดือนมีนาคม[ประเภท],สรุปค่าใช้จ่าย[รายจ่าย])","v":{"v":84,"d":"84.00"}},{"$f":"SUMIFS(ค่าใช้จ่ายเดือนเมษายน[จำนวนเงิน],ค่าใช้จ่ายเดือนเมษายน[ประเภท],สรุปค่าใช้จ่าย[รายจ่าย])","v":{"v":426,"d":"426.00"}},{"$f":"SUMIFS(ค่าใช้จ่ายเดือนพฤษภาคม[จำนวนเงิน],ค่าใช้จ่ายเดือนพฤษภาคม[ประเภท],สรุปค่าใช้จ่าย[รายจ่าย])","v":{"v":125,"d":"125.00"}},{"$f":"SUMIFS(ค่าใช้จ่ายเดือนมิถุนายน[จำนวนเงิน],ค่าใช้จ่ายเดือนมิถุนายน[ประเภท],สรุปค่าใช้จ่าย[รายจ่าย])","v":{"v":187,"d":"187.00"}},{"$f":"SUMIFS(ค่าใช้จ่ายเดือนกรกฎาคม[จำนวนเงิน],ค่าใช้จ่ายเดือนกรกฎาคม[ประเภท],สรุปค่าใช้จ่าย[รายจ่าย])","v":{"v":0,"d":"0.00"}},{"$f":"SUMIFS(ค่าใช้จ่ายเดือนสิงหาคม[จำนวนเงิน],ค่าใช้จ่ายเดือนสิงหาคม[ประเภท],สรุปค่าใช้จ่าย[รายจ่าย])","v":{"v":0,"d":"0.00"}},{"$f":"SUMIFS(ค่าใช้จ่ายเดือนกรกฎาคม[จำนวนเงิน],ค่าใช้จ่ายเดือนกรกฎาคม[ประเภท],สรุปค่าใช้จ่าย[รายจ่าย])","v":{"v":0,"d":"0.00"}},{"$f":"SUMIFS(ค่าใช้จ่ายเดือนตุลาคม[จำนวนเงิน],ค่าใช้จ่ายเดือนตุลาคม[ประเภท],สรุปค่าใช้จ่าย[รายจ่าย])","v":{"v":0,"d":"0.00"}},{"$f":"SUMIFS(ค่าใช้จ่ายเดือนพฤศจิกายน[จำนวนเงิน],ค่าใช้จ่ายเดือนพฤศจิกายน[ประเภท],สรุปค่าใช้จ่าย[รายจ่าย])","v":{"v":0,"d":"0.00"}},{"$f":"SUMIFS(ค่าใช้จ่ายเดือนธันวาคม[จำนวนเงิน],ค่าใช้จ่ายเดือนธันวาคม[ประเภท],สรุปค่าใช้จ่าย[รายจ่าย])","v":{"v":187,"d":"187.00"}},{"$f":"SUM(สรุปค่าใช้จ่าย[[#This Row],[ม.ค.]:[ธ.ค.]])","v":{"v":1519,"d":"1,519.00"}}]
["ค่าใช้จ่าย 5",{"$f":"SUMIFS(ค่าใช้จ่ายเดือนมกราคม[จำนวนเงิน],ค่าใช้จ่ายเดือนมกราคม[ประเภท],สรุปค่าใช้จ่าย[รายจ่าย])","v":{"v":54,"d":"54.00"}},{"$f":"SUMIFS(ค่าใช้จ่ายเดือนกุมภาพันธ์[จำนวนเงิน],ค่าใช้จ่ายเดือนกุมภาพันธ์[ประเภท],สรุปค่าใช้จ่าย[รายจ่าย])","v":{"v":54,"d":"54.00"}},{"$f":"SUMIFS(ค่าใช้จ่ายเดือนมีนาคม[จำนวนเงิน],ค่าใช้จ่ายเดือนมีนาคม[ประเภท],สรุปค่าใช้จ่าย[รายจ่าย])","v":{"v":109,"d":"109.00"}},{"$f":"SUMIFS(ค่าใช้จ่ายเดือนเมษายน[จำนวนเงิน],ค่าใช้จ่ายเดือนเมษายน[ประเภท],สรุปค่าใช้จ่าย[รายจ่าย])","v":{"v":98,"d":"98.00"}},{"$f":"SUMIFS(ค่าใช้จ่ายเดือนพฤษภาคม[จำนวนเงิน],ค่าใช้จ่ายเดือนพฤษภาคม[ประเภท],สรุปค่าใช้จ่าย[รายจ่าย])","v":{"v":33,"d":"33.00"}},{"$f":"SUMIFS(ค่าใช้จ่ายเดือนมิถุนายน[จำนวนเงิน],ค่าใช้จ่ายเดือนมิถุนายน[ประเภท],สรุปค่าใช้จ่าย[รายจ่าย])","v":{"v":441,"d":"441.00"}},{"$f":"SUMIFS(ค่าใช้จ่ายเดือนกรกฎาคม[จำนวนเงิน],ค่าใช้จ่ายเดือนกรกฎาคม[ประเภท],สรุปค่าใช้จ่าย[รายจ่าย])","v":{"v":0,"d":"0.00"}},{"$f":"SUMIFS(ค่าใช้จ่ายเดือนสิงหาคม[จำนวนเงิน],ค่าใช้จ่ายเดือนสิงหาคม[ประเภท],สรุปค่าใช้จ่าย[รายจ่าย])","v":{"v":0,"d":"0.00"}},{"$f":"SUMIFS(ค่าใช้จ่ายเดือนกรกฎาคม[จำนวนเงิน],ค่าใช้จ่ายเดือนกรกฎาคม[ประเภท],สรุปค่าใช้จ่าย[รายจ่าย])","v":{"v":0,"d":"0.00"}},{"$f":"SUMIFS(ค่าใช้จ่ายเดือนตุลาคม[จำนวนเงิน],ค่าใช้จ่ายเดือนตุลาคม[ประเภท],สรุปค่าใช้จ่าย[รายจ่าย])","v":{"v":0,"d":"0.00"}},{"$f":"SUMIFS(ค่าใช้จ่ายเดือนพฤศจิกายน[จำนวนเงิน],ค่าใช้จ่ายเดือนพฤศจิกายน[ประเภท],สรุปค่าใช้จ่าย[รายจ่าย])","v":{"v":0,"d":"0.00"}},{"$f":"SUMIFS(ค่าใช้จ่ายเดือนธันวาคม[จำนวนเงิน],ค่าใช้จ่ายเดือนธันวาคม[ประเภท],สรุปค่าใช้จ่าย[รายจ่าย])","v":{"v":99,"d":"99.00"}},{"$f":"SUM(สรุปค่าใช้จ่าย[[#This Row],[ม.ค.]:[ธ.ค.]])","v":{"v":888,"d":"888.00"}}]
["ผลรวม",{"$f":"SUBTOTAL(109,สรุปค่าใช้จ่าย[ม.ค.])","v":{"v":861,"d":"861.00"}},{"$f":"SUBTOTAL(109,สรุปค่าใช้จ่าย[ก.พ.])","v":{"v":861,"d":"861.00"}},{"$f":"SUBTOTAL(109,สรุปค่าใช้จ่าย[มี.ค.])","v":{"v":574,"d":"574.00"}},{"$f":"SUBTOTAL(109,สรุปค่าใช้จ่าย[เม.ย.])","v":{"v":817,"d":"817.00"}},{"$f":"SUBTOTAL(109,สรุปค่าใช้จ่าย[พ.ค.])","v":{"v":977,"d":"977.00"}},{"$f":"SUBTOTAL(109,สรุปค่าใช้จ่าย[มิ.ย.])","v":{"v":1049,"d":"1,049.00"}},{"$f":"SUBTOTAL(109,สรุปค่าใช้จ่าย[ก.ค.])","v":{"v":0,"d":"0.00"}},{"$f":"SUBTOTAL(109,สรุปค่าใช้จ่าย[ส.ค.])","v":{"v":0,"d":"0.00"}},{"$f":"SUBTOTAL(109,สรุปค่าใช้จ่าย[ก.ย.])","v":{"v":0,"d":"0.00"}},{"$f":"SUBTOTAL(109,สรุปค่าใช้จ่าย[ต.ค.])","v":{"v":0,"d":"0.00"}},{"$f":"SUBTOTAL(109,สรุปค่าใช้จ่าย[พ.ย.])","v":{"v":0,"d":"0.00"}},{"$f":"SUBTOTAL(109,สรุปค่าใช้จ่าย[ธ.ค.])","v":{"v":1049,"d":"1,049.00"}},{"$f":"SUBTOTAL(109,สรุปค่าใช้จ่าย[ผลรวม])","v":{"v":6188,"d":"6,188.00"}}]

{"sheet":"ม.ค.","index":2,"n_rows":9,"n_cols":5,"rows_kept":9,"merged":[[0,0,0,2]]}
["ค่าใช้จ่ายเดือนมกราคม",null,null,"สรุป","เคล็ดลับ"]
["วันที่","PO#","จำนวนเงิน","ประเภท","คำอธิบาย"]
[{"$f":"DATE(YEAR(TODAY()),1,4)","v":"2016-01-04"},"A-12345",{"v":33,"d":"33.00"},"ค่าใช้จ่าย 1","สินค้า"]
[{"$f":"DATE(YEAR(TODAY()),1,5)","v":"2016-01-05"},"A-12346",{"v":238,"d":"238.00"},"ค่าใช้จ่าย 2"]
[null,null,{"v":342,"d":"342.00"},"ค่าใช้จ่าย 4"]
[null,null,{"v":110,"d":"110.00"},"ค่าใช้จ่าย 3"]
[null,null,{"v":84,"d":"84.00"},"ค่าใช้จ่าย 4"]
[null,null,{"v":54,"d":"54.00"},"ค่าใช้จ่าย 5"]
["ผลรวม",null,{"$f":"SUBTOTAL(109,ค่าใช้จ่ายเดือนมกราคม[จำนวนเงิน])","v":{"v":861,"d":"861.00"}}]

{"sheet":"ก.พ.","index":3,"n_rows":9,"n_cols":5,"rows_kept":9,"merged":[[0,0,0,2]]}
["ค่าใช้จ่ายเดือนกุมภาพันธ์",null,null,"สรุป","เคล็ดลับ"]
["วันที่","PO#","จำนวนเงิน","ประเภท","คำอธิบาย"]
[{"$f":"DATE(YEAR(TODAY()),2,3)","v":"2016-02-03"},"A-12345",{"v":33,"d":"33.00"},"ค่าใช้จ่าย 1","สินค้า"]
[{"$f":"DATE(YEAR(TODAY()),2,4)","v":"2016-02-04"},"A-12346",{"v":238,"d":"238.00"},"ค่าใช้จ่าย 2"]
[null,null,{"v":342,"d":"342.00"},"ค่าใช้จ่าย 1"]
[null,null,{"v":110,"d":"110.00"},"ค่าใช้จ่าย 3"]
[null,null,{"v":84,"d":"84.00"},"ค่าใช้จ่าย 4"]
[null,null,{"v":54,"d":"54.00"},"ค่าใช้จ่าย 5"]
["ผลรวม",null,{"$f":"SUBTOTAL(109,ค่าใช้จ่ายเดือนกุมภาพันธ์[จำนวนเงิน])","v":{"v":861,"d":"861.00"}}]

{"sheet":"มี.ค.","index":4,"n_rows":9,"n_cols":5,"rows_kept":9,"merged":[[0,0,0,2]]}
["ค่าใช้จ่ายเดือนมีนาคม",null,null,"สรุป","เคล็ดลับ"]
["วันที่","PO#","จำนวนเงิน","ประเภท","คำอธิบาย"]
[{"$f":"DATE(YEAR(TODAY()),3,5)","v":"2016-03-05"},"A-12345",{"v":33,"d":"33.00"},"ค่าใช้จ่าย 1","สินค้า"]
[{"$f":"DATE(YEAR(TODAY()),3,6)","v":"2016-03-06"},"A-12346",{"v":238,"d":"238.00"},"ค่าใช้จ่าย 2"]
[null,null,{"v":55,"d":"55.00"},"ค่าใช้จ่าย 5"]
[null,null,{"v":110,"d":"110.00"},"ค่าใช้จ่าย 3"]
[null,null,{"v":84,"d":"84.00"},"ค่าใช้จ่าย 4"]
[null,null,{"v":54,"d":"54.00"},"ค่าใช้จ่าย 5"]
["ผลรวม",null,{"$f":"SUBTOTAL(109,ค่าใช้จ่ายเดือนมีนาคม[จำนวนเงิน])","v":{"v":574,"d":"574.00"}}]

{"sheet":"เม.ย.","index":5,"n_rows":9,"n_cols":5,"rows_kept":9,"merged":[[0,0,0,2]]}
["ค่าใช้จ่ายเดือนเมษายน",null,null,"สรุป","เคล็ดลับ"]
["วันที่","PO#","จำนวนเงิน","ประเภท","คำอธิบาย"]
[{"$f":"DATE(YEAR(TODAY()),4,4)","v":"2016-04-04"},"A-12345",{"v":45,"d":"45.00"},"ค่าใช้จ่าย 1","สินค้า"]
[{"$f":"DATE(YEAR(TODAY()),4,8)","v":"2016-04-08"},"A-12346",{"v":123,"d":"123.00"},"ค่าใช้จ่าย 2"]
[null,null,{"v":342,"d":"342.00"},"ค่าใช้จ่าย 4"]
[null,null,{"v":125,"d":"125.00"},"ค่าใช้จ่าย 3"]
[null,null,{"v":84,"d":"84.00"},"ค่าใช้จ่าย 4"]
[null,null,{"v":98,"d":"98.00"},"ค่าใช้จ่าย 5"]
["ผลรวม",null,{"$f":"SUBTOTAL(109,ค่าใช้จ่ายเดือนเมษายน[จำนวนเงิน])","v":{"v":817,"d":"817.00"}}]

{"sheet":"พ.ค.","index":6,"n_rows":9,"n_cols":5,"rows_kept":9,"merged":[[0,0,0,2]]}
["ค่าใช้จ่ายเดือนพฤษภาคม",null,null,"สรุป","เคล็ดลับ"]
["วันที่","PO#","จำนวนเงิน","ประเภท","คำอธิบาย"]
[{"$f":"DATE(YEAR(TODAY()),5,3)","v":"2016-05-03"},"A-12345",{"v":33,"d":"33.00"},"ค่าใช้จ่าย 1","สินค้า"]
[{"$f":"DATE(YEAR(TODAY()),5,8)","v":"2016-05-08"},"A-12346",{"v":111,"d":"111.00"},"ค่าใช้จ่าย 2"]
[null,null,{"v":342,"d":"342.00"},"ค่าใช้จ่าย 1"]
[null,null,{"v":333,"d":"333.00"},"ค่าใช้จ่าย 3"]
[null,null,{"v":125,"d":"125.00"},"ค่าใช้จ่าย 4"]
[null,null,{"v":33,"d":"33.00"},"ค่าใช้จ่าย 5"]
["ผลรวม",null,{"$f":"SUBTOTAL(109,ค่าใช้จ่ายเดือนพฤษภาคม[จำนวนเงิน])","v":{"v":977,"d":"977.00"}}]

{"sheet":"มิ.ย.","index":7,"n_rows":9,"n_cols":5,"rows_kept":9,"merged":[[0,0,0,2]]}
["ค่าใช้จ่ายเดือนมิถุนายน",null,null,"สรุป","เคล็ดลับ"]
["วันที่","PO#","จำนวนเงิน","ประเภท","คำอธิบาย"]
[{"$f":"DATE(YEAR(TODAY()),6,7)","v":"2016-06-07"},"A-12345",{"v":201,"d":"201.00"},"ค่าใช้จ่าย 1","สินค้า"]
[{"$f":"DATE(YEAR(TODAY()),6,8)","v":"2016-06-08"},"A-12346",{"v":98,"d":"98.00"},"ค่าใช้จ่าย 2"]
[null,null,{"v":342,"d":"342.00"},"ค่าใช้จ่าย 5"]
[null,null,{"v":122,"d":"122.00"},"ค่าใช้จ่าย 3"]
[null,null,{"v":187,"d":"187.00"},"ค่าใช้จ่าย 4"]
[null,null,{"v":99,"d":"99.00"},"ค่าใช้จ่าย 5"]
["ผลรวม",null,{"$f":"SUBTOTAL(109,ค่าใช้จ่ายเดือนมิถุนายน[จำนวนเงิน])","v":{"v":1049,"d":"1,049.00"}}]

{"sheet":"ก.ค.","index":8,"n_rows":9,"n_cols":5,"rows_kept":9,"merged":[[0,0,0,2]]}
["ค่าใช้จ่ายเดือนกรกฎาคม",null,null,"สรุป","เคล็ดลับ"]
["วันที่","PO#","จำนวนเงิน","ประเภท","คำอธิบาย"]
[{"$f":"DATE(YEAR(TODAY()),7,9)","v":"2016-07-09"},"A-12345",null,"ค่าใช้จ่าย 1","สินค้า"]
[{"$f":"DATE(YEAR(TODAY()),7,14)","v":"2016-07-14"},"A-12346",null,"ค่าใช้จ่าย 2"]
[{"$nulls":3},"ค่าใช้จ่าย 2"]
[{"$nulls":3},"ค่าใช้จ่าย 3"]
[{"$nulls":3},"ค่าใช้จ่าย 4"]
[{"$nulls":3},"ค่าใช้จ่าย 5"]
["ผลรวม",null,{"$f":"SUBTOTAL(109,ค่าใช้จ่ายเดือนกรกฎาคม[จำนวนเงิน])","v":{"v":0,"d":"0.00"}}]

{"sheet":"ส.ค.","index":9,"n_rows":9,"n_cols":5,"rows_kept":9,"merged":[[0,0,0,2]]}
["ค่าใช้จ่ายเดือนสิงหาคม",null,null,"สรุป","เคล็ดลับ"]
["วันที่","PO#","จำนวนเงิน","ประเภท","คำอธิบาย"]
[{"$f":"DATE(YEAR(TODAY()),8,8)","v":"2016-08-08"},"A-12345",null,"ค่าใช้จ่าย 1","สินค้า"]
[{"$f":"DATE(YEAR(TODAY()),8,9)","v":"2016-08-09"},"A-12346",null,"ค่าใช้จ่าย 2"]
[{"$nulls":3},"ค่าใช้จ่าย 2"]
[{"$nulls":3},"ค่าใช้จ่าย 3"]
[{"$nulls":3},"ค่าใช้จ่าย 4"]
[{"$nulls":3},"ค่าใช้จ่าย 5"]
["ผลรวม",null,{"$f":"SUBTOTAL(109,ค่าใช้จ่ายเดือนสิงหาคม[จำนวนเงิน])","v":{"v":0,"d":"0.00"}}]

{"sheet":"ก.ย.","index":10,"n_rows":9,"n_cols":5,"rows_kept":9,"merged":[[0,0,0,2]]}
["ค่าใช้จ่ายเดือนกันยายน",null,null,"สรุป","เคล็ดลับ"]
["วันที่","PO#","จำนวนเงิน","ประเภท","คำอธิบาย"]
[{"$f":"DATE(YEAR(TODAY()),9,9)","v":"2016-09-09"},"A-12345",null,"ค่าใช้จ่าย 1","สินค้า"]
[{"$f":"DATE(YEAR(TODAY()),9,15)","v":"2016-09-15"},"A-12346",null,"ค่าใช้จ่าย 2"]
[{"$nulls":3},"ค่าใช้จ่าย 2"]
[{"$nulls":3},"ค่าใช้จ่าย 3"]
[{"$nulls":3},"ค่าใช้จ่าย 4"]
[{"$nulls":3},"ค่าใช้จ่าย 5"]
["ผลรวม",null,{"$f":"SUBTOTAL(109,ค่าใช้จ่ายเดือนกันยายน[จำนวนเงิน])","v":{"v":0,"d":"0.00"}}]

{"sheet":"ต.ค.","index":11,"n_rows":9,"n_cols":5,"rows_kept":9,"merged":[[0,0,0,2]]}
["ค่าใช้จ่ายเดือนตุลาคม",null,null,"สรุป","เคล็ดลับ"]
["วันที่","PO#","จำนวนเงิน","ประเภท","คำอธิบาย"]
[{"$f":"DATE(YEAR(TODAY()),10,10)","v":"2016-10-10"},"A-12345",null,"ค่าใช้จ่าย 1","สินค้า"]
[{"$f":"DATE(YEAR(TODAY()),10,21)","v":"2016-10-21"},"A-12346",null,"ค่าใช้จ่าย 2"]
[{"$nulls":3},"ค่าใช้จ่าย 2"]
[{"$nulls":3},"ค่าใช้จ่าย 3"]
[{"$nulls":3},"ค่าใช้จ่าย 4"]
[{"$nulls":3},"ค่าใช้จ่าย 5"]
["ผลรวม",null,{"$f":"SUBTOTAL(109,ค่าใช้จ่ายเดือนตุลาคม[จำนวนเงิน])","v":{"v":0,"d":"0.00"}}]

{"sheet":"พ.ย.","index":12,"n_rows":9,"n_cols":5,"rows_kept":9,"merged":[[0,0,0,2]]}
["ค่าใช้จ่ายเดือนพฤศจิกายน",null,null,"สรุป","เคล็ดลับ"]
["วันที่","PO#","จำนวนเงิน","ประเภท","คำอธิบาย"]
[{"$f":"DATE(YEAR(TODAY()),11,14)","v":"2016-11-14"},"A-12345",null,"ค่าใช้จ่าย 1","สินค้า"]
[{"$f":"DATE(YEAR(TODAY()),11,21)","v":"2016-11-21"},"A-12346",null,"ค่าใช้จ่าย 2"]
[{"$nulls":3},"ค่าใช้จ่าย 2"]
[{"$nulls":3},"ค่าใช้จ่าย 3"]
[{"$nulls":3},"ค่าใช้จ่าย 4"]
[{"$nulls":3},"ค่าใช้จ่าย 5"]
["ผลรวม",null,{"$f":"SUBTOTAL(109,ค่าใช้จ่ายเดือนพฤศจิกายน[จำนวนเงิน])","v":{"v":0,"d":"0.00"}}]

{"sheet":"ธ.ค.","index":13,"n_rows":9,"n_cols":5,"rows_kept":9,"merged":[[0,0,0,2]]}
["ค่าใช้จ่ายเดือนธันวาคม",null,null,"สรุป","เคล็ดลับ"]
["วันที่","PO#","จำนวนเงิน","ประเภท","คำอธิบาย"]
[{"$f":"DATE(YEAR(TODAY()),12,2)","v":"2016-12-02"},"A-12345",{"v":201,"d":"201.00"},"ค่าใช้จ่าย 1","สินค้า"]
[{"$f":"DATE(YEAR(TODAY()),12,24)","v":"2016-12-24"},"A-12346",{"v":98,"d":"98.00"},"ค่าใช้จ่าย 2"]
[null,null,{"v":342,"d":"342.00"},"ค่าใช้จ่าย 2"]
[null,null,{"v":122,"d":"122.00"},"ค่าใช้จ่าย 3"]
[null,null,{"v":187,"d":"187.00"},"ค่าใช้จ่าย 4"]
[null,null,{"v":99,"d":"99.00"},"ค่าใช้จ่าย 5"]
["ผลรวม",null,{"$f":"SUBTOTAL(109,ค่าใช้จ่ายเดือนธันวาคม[จำนวนเงิน])","v":{"v":1049,"d":"1,049.00"}}]